[Event "*** Titled Tuesday 3|2 Blitz"]
[Site "Chess.com"]
[Date "2016.06.07"]
[Round "2"]
[White "Keranke"]
[Black "Rumpel-VK"]
[Result "1-0"]
[WhiteElo "2575"]
[BlackElo "2437"]
[TimeControl "180+2"]
[EndTime "11:26:07 PDT"]
[Termination "Keranke won on time"]

1. d4 {[%clk 0:03:01.9]} 1... d5 {[%clk 0:02:56.4]} 2. Bf4 {[%clk 0:03:01.4]}
2... e6 {[%clk 0:02:50.9]} 3. e3 {[%clk 0:03:02.5]} 3... Ne7 {[%clk 0:02:52]} 4.
c4 {[%clk 0:02:58.5]} 4... c6 {[%clk 0:02:52.2]} 5. Nc3 {[%clk 0:02:59.4]} 5...
Nf5 {[%clk 0:02:53.2]} 6. Nf3 {[%clk 0:02:55.3]} 6... Bd6 {[%clk 0:02:54]} 7.
Bxd6 {[%clk 0:02:48]} 7... Qxd6 {[%clk 0:02:54.8]} 8. Bd3 {[%clk 0:02:48.8]}
8... O-O {[%clk 0:02:54.3]} 9. O-O {[%clk 0:02:33.2]} 9... Nd7 {[%clk
0:02:36.2]} 10. e4 {[%clk 0:02:03.6]} 10... dxe4 {[%clk 0:02:28.8]} 11. Nxe4
{[%clk 0:02:05.5]} 11... Qe7 {[%clk 0:02:27.2]} 12. Re1 {[%clk 0:01:56.3]} 12...
Nf6 {[%clk 0:02:28.1]} 13. Nxf6+ {[%clk 0:01:41.5]} 13... Qxf6 {[%clk
0:02:28.3]} 14. Bxf5 {[%clk 0:01:42]} 14... exf5 {[%clk 0:02:24.2]} 15. Qd2
{[%clk 0:01:30.5]} 15... Be6 {[%clk 0:02:23.2]} 16. b3 {[%clk 0:01:28.1]} 16...
Rad8 {[%clk 0:02:22.3]} 17. Qa5 {[%clk 0:01:23.1]} 17... a6 {[%clk 0:02:11.9]}
18. Rad1 {[%clk 0:01:23.7]} 18... h6 {[%clk 0:02:02.9]} 19. d5 {[%clk
0:01:21.5]} 19... cxd5 {[%clk 0:02:01.9]} 20. cxd5 {[%clk 0:01:23.4]} 20... Bc8
{[%clk 0:01:33.9]} 21. Qc7 {[%clk 0:01:23.6]} 21... Rd7 {[%clk 0:01:27.9]} 22.
Qe5 {[%clk 0:01:24.8]} 22... Rfd8 {[%clk 0:01:08.4]} 23. Qxf6 {[%clk 0:01:24.9]}
23... gxf6 {[%clk 0:01:09.5]} 24. Rd4 {[%clk 0:01:26.5]} 24... b5 {[%clk
0:01:09.5]} 25. d6 {[%clk 0:01:20.7]} 25... Bb7 {[%clk 0:01:07.2]} 26. Red1
{[%clk 0:01:09]} 26... Bxf3 {[%clk 0:01:06.3]} 27. gxf3 {[%clk 0:01:10.9]} 27...
Rc8 {[%clk 0:01:02.2]} 28. Kg2 {[%clk 0:01:09.3]} 28... Kg7 {[%clk 0:01:03]} 29.
Kg3 {[%clk 0:01:10.5]} 29... Rc2 {[%clk 0:01:02.3]} 30. R1d2 {[%clk 0:01:11.5]}
30... Rc5 {[%clk 0:01:01.9]} 31. Kf4 {[%clk 0:01:11]} 31... Kg6 {[%clk
0:01:01.4]} 32. Rd5 {[%clk 0:01:11.2]} 32... Rc6 {[%clk 0:01:02.1]} 33. Rd1
{[%clk 0:01:11.8]} 33... h5 {[%clk 0:01:00]} 34. h4 {[%clk 0:01:06]} 34... Rb6
{[%clk 0:00:56.9]} 35. Rg1+ {[%clk 0:00:48]} 35... Kh6 {[%clk 0:00:57.4]} 36.
Kxf5 {[%clk 0:00:46.2]} 36... Rbxd6 {[%clk 0:00:56.5]} 37. Rxd6 {[%clk
0:00:48.1]} 37... Rxd6 {[%clk 0:00:57.7]} 38. Rc1 {[%clk 0:00:44.6]} 38... Kg7
{[%clk 0:00:54.7]} 39. Rg1+ {[%clk 0:00:43.7]} 39... Kf8 {[%clk 0:00:54.2]} 40.
f4 {[%clk 0:00:42.9]} 40... Re6 {[%clk 0:00:52.3]} 41. a3 {[%clk 0:00:39.9]}
41... Rd6 {[%clk 0:00:52]} 42. Rg3 {[%clk 0:00:40.4]} 42... Rc6 {[%clk 0:00:52]}
43. b4 {[%clk 0:00:40.4]} 43... Rd6 {[%clk 0:00:52.8]} 44. Rc3 {[%clk
0:00:40.6]} 44... Kg7 {[%clk 0:00:53.1]} 45. Ke4 {[%clk 0:00:39.7]} 45... Kh6
{[%clk 0:00:45.8]} 46. f5 {[%clk 0:00:39.3]} 46... Kg7 {[%clk 0:00:46.2]} 47. f3
{[%clk 0:00:34.1]} 47... Kf8 {[%clk 0:00:44.1]} 48. Rc8+ {[%clk 0:00:32]} 48...
Ke7 {[%clk 0:00:45.3]} 49. Rh8 {[%clk 0:00:27.7]} 49... Rd1 {[%clk 0:00:46.6]}
50. Ra8 {[%clk 0:00:28.7]} 50... Rd6 {[%clk 0:00:47.2]} 51. Ra7+ {[%clk
0:00:28]} 51... Kf8 {[%clk 0:00:47.6]} 52. Ke3 {[%clk 0:00:20.4]} 52... Kg7
{[%clk 0:00:44.8]} 53. Ke4 {[%clk 0:00:20.8]} 53... Kf8 {[%clk 0:00:45.9]} 54.
Ra8+ {[%clk 0:00:19.3]} 54... Ke7 {[%clk 0:00:41.1]} 55. Rc8 {[%clk 0:00:19.7]}
55... Rd1 {[%clk 0:00:36.3]} 56. Rc6 {[%clk 0:00:20]} 56... Rd6 {[%clk
0:00:36.8]} 57. Rc7+ {[%clk 0:00:16]} 57... Kf8 {[%clk 0:00:37.8]} 58. Ra7
{[%clk 0:00:14.9]} 58... Ke8 {[%clk 0:00:38]} 59. Ra8+ {[%clk 0:00:15.2]} 59...
Ke7 {[%clk 0:00:39.2]} 60. Rh8 {[%clk 0:00:16.3]} 60... Rd1 {[%clk 0:00:39.9]}
61. Rxh5 {[%clk 0:00:16.1]} 61... Ra1 {[%clk 0:00:40.8]} 62. Rh8 {[%clk
0:00:16.2]} 62... Rxa3 {[%clk 0:00:41.7]} 63. h5 {[%clk 0:00:12.7]} 63... Ra4
{[%clk 0:00:42.8]} 64. Kf4 {[%clk 0:00:08.4]} 64... Rxb4+ {[%clk 0:00:43.9]} 65.
Kg3 {[%clk 0:00:09.4]} 65... Rb1 {[%clk 0:00:37.1]} 66. Kg2 {[%clk 0:00:10.8]}
66... Rb2+ {[%clk 0:00:34.1]} 67. Kg3 {[%clk 0:00:12.2]} 67... Rb1 {[%clk
0:00:33]} 68. Kg2 {[%clk 0:00:13.5]} 68... b4 {[%clk 0:00:31.3]} 69. h6 {[%clk
0:00:14.5]} 69... Rb3 {[%clk 0:00:32.7]} 70. h7 {[%clk 0:00:14.8]} 70... Rb2+
{[%clk 0:00:34]} 71. Kg3 {[%clk 0:00:15.8]} 71... Rb1 {[%clk 0:00:30.7]} 72. Rb8
{[%clk 0:00:16.7]} 72... Rh1 {[%clk 0:00:31.2]} 73. h8=Q {[%clk 0:00:17.4]}
73... Rxh8 {[%clk 0:00:32.3]} 74. Rxh8 {[%clk 0:00:19.3]} 74... Kd6 {[%clk
0:00:30.6]} 75. Ra8 {[%clk 0:00:18.3]} 75... Kc5 {[%clk 0:00:28.9]} 76. Rxa6
{[%clk 0:00:19.3]} 76... b3 {[%clk 0:00:30.3]} 77. Ra8 {[%clk 0:00:16.1]} 77...
Kc4 {[%clk 0:00:30.7]} 78. Kg4 {[%clk 0:00:10.5]} 1-0

[Event "*** Titled Tuesday 3|2 Blitz"]
[Site "Chess.com"]
[Date "2016.06.07"]
[Round "2"]
[White "annakantane"]
[Black "VMikhalevski"]
[Result "0-1"]
[WhiteElo "2155"]
[BlackElo "2434"]
[TimeControl "180+2"]
[EndTime "11:26:28 PDT"]
[Termination "VMikhalevski won by resignation"]

1. e4 {[%clk 0:03:01.9]} 1... e5 {[%clk 0:03:00]} 2. Nf3 {[%clk 0:03:02.5]} 2...
Nc6 {[%clk 0:02:59.8]} 3. Bb5 {[%clk 0:03:01.2]} 3... a6 {[%clk 0:03:01.2]} 4.
Ba4 {[%clk 0:03:01.7]} 4... Nf6 {[%clk 0:03:02.8]} 5. O-O {[%clk 0:03:02]} 5...
Nxe4 {[%clk 0:03:03.3]} 6. d4 {[%clk 0:03:01.9]} 6... b5 {[%clk 0:03:04.9]} 7.
Bb3 {[%clk 0:03:02]} 7... d5 {[%clk 0:03:06.6]} 8. dxe5 {[%clk 0:03:03.3]} 8...
Be6 {[%clk 0:03:08.1]} 9. Nbd2 {[%clk 0:03:00.1]} 9... Nc5 {[%clk 0:03:09.5]}
10. c3 {[%clk 0:03:01]} 10... Be7 {[%clk 0:03:10.4]} 11. Bc2 {[%clk 0:03:01]}
11... Bg4 {[%clk 0:03:11.6]} 12. h3 {[%clk 0:03:00]} 12... Bh5 {[%clk
0:03:11.8]} 13. Re1 {[%clk 0:02:59.6]} 13... O-O {[%clk 0:03:09.7]} 14. Nb3
{[%clk 0:02:59.8]} 14... Ne6 {[%clk 0:03:09]} 15. g4 {[%clk 0:02:52.4]} 15...
Bg6 {[%clk 0:03:08.3]} 16. Bf5 {[%clk 0:02:53.3]} 16... Re8 {[%clk 0:03:00.9]}
17. Qd3 {[%clk 0:02:49.6]} 17... Qd7 {[%clk 0:02:41.1]} 18. Bd2 {[%clk 0:02:46]}
18... Rad8 {[%clk 0:02:40]} 19. Rad1 {[%clk 0:02:46.8]} 19... Qc8 {[%clk
0:02:37.3]} 20. Bc1 {[%clk 0:02:45.9]} 20... Qb7 {[%clk 0:02:36.1]} 21. Nfd4
{[%clk 0:02:00.2]} 21... Ncxd4 {[%clk 0:02:34.5]} 22. cxd4 {[%clk 0:02:00.7]}
22... c5 {[%clk 0:02:33.3]} 23. dxc5 {[%clk 0:01:56.7]} 23... Bxc5 {[%clk
0:02:27.7]} 24. Nxc5 {[%clk 0:01:44.9]} 24... Nxc5 {[%clk 0:02:27.5]} 25. Qf3
{[%clk 0:01:45.8]} 25... Ne4 {[%clk 0:02:17.9]} 26. Bf4 {[%clk 0:00:45.6]} 26...
Qe7 {[%clk 0:02:14.2]} 27. Bxe4 {[%clk 0:00:39.3]} 27... Bxe4 {[%clk 0:02:12.2]}
28. Qe3 {[%clk 0:00:40.2]} 28... Qe6 {[%clk 0:02:05.7]} 29. f3 {[%clk
0:00:38.3]} 29... Bg6 {[%clk 0:02:05.5]} 30. Qd4 {[%clk 0:00:38.5]} 30... Rd7
{[%clk 0:02:01.5]} 31. Rc1 {[%clk 0:00:39.6]} 31... Rdd8 {[%clk 0:01:49.4]} 32.
Kf2 {[%clk 0:00:40.1]} 32... Rc8 {[%clk 0:01:48.9]} 33. Rxc8 {[%clk 0:00:36.2]}
33... Rxc8 {[%clk 0:01:48.1]} 34. Rc1 {[%clk 0:00:37.6]} 34... Re8 {[%clk
0:01:34.8]} 35. Rc5 {[%clk 0:00:24.2]} 35... Bb1 {[%clk 0:01:32.3]} 36. Qxd5
{[%clk 0:00:22.1]} 36... Qe7 {[%clk 0:01:19.2]} 37. Qd6 {[%clk 0:00:19.2]} 37...
Qa7 {[%clk 0:01:19.6]} 38. Kg3 {[%clk 0:00:18.9]} 38... Bxa2 {[%clk 0:01:19]}
39. Qc7 {[%clk 0:00:19.6]} 39... Qa8 {[%clk 0:01:18.5]} 40. Qd7 {[%clk
0:00:19.1]} 40... Be6 {[%clk 0:01:17.9]} 41. Qc7 {[%clk 0:00:19.6]} 41... Bd5
{[%clk 0:01:17.5]} 42. Be3 {[%clk 0:00:19.9]} 42... Bxf3 {[%clk 0:01:17.3]} 43.
Bd4 {[%clk 0:00:21]} 43... Bg2 {[%clk 0:01:15.2]} 44. Rc3 {[%clk 0:00:20.1]}
44... Bf1 {[%clk 0:01:15]} 45. Rf3 {[%clk 0:00:20.5]} 45... Bc4 {[%clk
0:01:14.4]} 46. e6 {[%clk 0:00:19.7]} 46... Bxe6 {[%clk 0:01:14.7]} 47. Qe5
{[%clk 0:00:20.3]} 47... f6 {[%clk 0:01:14.4]} 48. Rxf6 {[%clk 0:00:21.2]} 48...
gxf6 {[%clk 0:00:27.7]} 49. Qxf6 {[%clk 0:00:22.1]} 49... Qb8+ {[%clk
0:00:29.3]} 50. Be5 {[%clk 0:00:21.3]} 50... Qxe5+ {[%clk 0:00:29.5]} 51. Qxe5
{[%clk 0:00:22.7]} 51... Bf7 {[%clk 0:00:30.9]} 52. Qg5+ {[%clk 0:00:22.2]}
52... Kf8 {[%clk 0:00:30.9]} 53. Qh6+ {[%clk 0:00:23]} 53... Kg8 {[%clk
0:00:31.6]} 54. Qxa6 {[%clk 0:00:24.1]} 54... b4 {[%clk 0:00:30.9]} 55. Qb6
{[%clk 0:00:22.3]} 55... b3 {[%clk 0:00:31.3]} 56. h4 {[%clk 0:00:21.7]} 56...
Rc8 {[%clk 0:00:30.7]} 57. h5 {[%clk 0:00:21.1]} 57... Re8 {[%clk 0:00:30.9]}
58. Kh4 {[%clk 0:00:20.2]} 58... Rc8 {[%clk 0:00:29.7]} 59. Kg5 {[%clk
0:00:20.7]} 59... Re8 {[%clk 0:00:29.4]} 60. Kh4 {[%clk 0:00:20.5]} 60... Rc8
{[%clk 0:00:28.5]} 61. Qf6 {[%clk 0:00:21.4]} 61... Kf8 {[%clk 0:00:19.4]} 62.
Qh8+ {[%clk 0:00:21.3]} 62... Bg8 {[%clk 0:00:19.8]} 63. h6 {[%clk 0:00:21.7]}
63... Rc7 {[%clk 0:00:20.5]} 64. Qf6+ {[%clk 0:00:22.3]} 64... Ke8 {[%clk
0:00:19.7]} 65. Qe5+ {[%clk 0:00:23.1]} 65... Re7 {[%clk 0:00:19.8]} 66. Qb8+
{[%clk 0:00:21.9]} 66... Kf7 {[%clk 0:00:20.7]} 67. Qxb3+ {[%clk 0:00:22.5]}
67... Kf8 {[%clk 0:00:22.3]} 68. Qf3+ {[%clk 0:00:22.5]} 68... Ke8 {[%clk
0:00:22.3]} 69. b4 {[%clk 0:00:22.2]} 69... Kd7 {[%clk 0:00:22.4]} 70. b5 {[%clk
0:00:22.4]} 70... Kd6 {[%clk 0:00:21.8]} 71. Qc6+ {[%clk 0:00:22.8]} 71... Ke5
{[%clk 0:00:22.2]} 72. b6 {[%clk 0:00:23.7]} 72... Bd5 {[%clk 0:00:22.7]} 73.
Qc3+ {[%clk 0:00:22.5]} 73... Kd6 {[%clk 0:00:22.1]} 74. Qb4+ {[%clk 0:00:21.9]}
74... Ke6 {[%clk 0:00:22.4]} 75. Kg5 {[%clk 0:00:19.8]} 75... Rf7 {[%clk
0:00:23.2]} 76. Qe1+ {[%clk 0:00:15.9]} 76... Kd6 {[%clk 0:00:23.3]} 77. Qb4+
{[%clk 0:00:16.4]} 77... Kc6 {[%clk 0:00:23.5]} 78. Qd4 {[%clk 0:00:17.3]} 78...
Rf8 {[%clk 0:00:20.1]} 79. Kh4 {[%clk 0:00:16.8]} 79... Rf7 {[%clk 0:00:19.3]}
80. g5 {[%clk 0:00:17.2]} 80... Re7 {[%clk 0:00:19.8]} 81. Qf6+ {[%clk
0:00:17.6]} 81... Re6 {[%clk 0:00:20.7]} 82. Qd4 {[%clk 0:00:18]} 82... Re4+
{[%clk 0:00:21]} 83. Qxe4 {[%clk 0:00:17.1]} 83... Bxe4 {[%clk 0:00:22.6]} 84.
Kg4 {[%clk 0:00:17.6]} 84... Bg6 {[%clk 0:00:23.2]} 85. Kf4 {[%clk 0:00:17.6]}
85... Kxb6 {[%clk 0:00:24.7]} 86. Kg3 {[%clk 0:00:18.2]} 86... Kc5 {[%clk
0:00:26.1]} 87. Kg4 {[%clk 0:00:19]} 87... Kd4 {[%clk 0:00:26.6]} 88. Kf4 {[%clk
0:00:20.2]} 88... Kd5 {[%clk 0:00:28.2]} 89. Kg4 {[%clk 0:00:21]} 89... Ke5
{[%clk 0:00:29.7]} 90. Kh4 {[%clk 0:00:21.8]} 90... Kf4 {[%clk 0:00:31.1]} 91.
Kh3 {[%clk 0:00:22.3]} 91... Kxg5 {[%clk 0:00:32.7]} 0-1

[Event "*** Titled Tuesday 3|2 Blitz"]
[Site "Chess.com"]
[Date "2016.06.07"]
[Round "2"]
[White "Rikikits"]
[Black "Malev212"]
[Result "1/2-1/2"]
[WhiteElo "2418"]
[BlackElo "2224"]
[TimeControl "180+2"]
[EndTime "11:27:38 PDT"]
[Termination "Game drawn - insufficient material"]

1. e4 {[%clk 0:03:01.9]} 1... c6 {[%clk 0:03:00.3]} 2. c4 {[%clk 0:03:01.3]}
2... d5 {[%clk 0:03:01.3]} 3. exd5 {[%clk 0:03:03.2]} 3... cxd5 {[%clk
0:03:02.2]} 4. cxd5 {[%clk 0:03:05.1]} 4... Nf6 {[%clk 0:03:03.2]} 5. Nc3 {[%clk
0:03:07]} 5... g6 {[%clk 0:03:02.8]} 6. Nf3 {[%clk 0:03:07.9]} 6... Bg7 {[%clk
0:03:04.3]} 7. Bb5+ {[%clk 0:03:08]} 7... Nbd7 {[%clk 0:03:03.2]} 8. O-O {[%clk
0:03:02.8]} 8... O-O {[%clk 0:03:03.8]} 9. Re1 {[%clk 0:03:04.3]} 9... Nb6
{[%clk 0:03:03.9]} 10. d4 {[%clk 0:03:03.5]} 10... Nbxd5 {[%clk 0:03:04.4]} 11.
h3 {[%clk 0:03:03.6]} 11... Bd7 {[%clk 0:02:40.1]} 12. Bc4 {[%clk 0:02:35.1]}
12... Nxc3 {[%clk 0:02:21.9]} 13. bxc3 {[%clk 0:02:37]} 13... Rc8 {[%clk
0:02:17.1]} 14. Bb3 {[%clk 0:02:38]} 14... Rxc3 {[%clk 0:02:08.9]} 15. Ba3
{[%clk 0:02:39.1]} 15... Re8 {[%clk 0:02:09.1]} 16. Bb4 {[%clk 0:02:39.8]} 16...
Rc7 {[%clk 0:02:05.8]} 17. Ne5 {[%clk 0:02:17]} 17... Be6 {[%clk 0:02:06.3]} 18.
Bxe6 {[%clk 0:02:15.8]} 18... fxe6 {[%clk 0:02:06.4]} 19. Nf3 {[%clk 0:02:07.1]}
19... Rc6 {[%clk 0:02:04.6]} 20. Rb1 {[%clk 0:01:50.7]} 20... Nd5 {[%clk
0:02:03.1]} 21. Bd2 {[%clk 0:01:49.4]} 21... Qd7 {[%clk 0:01:58.8]} 22. Qe2
{[%clk 0:01:44.3]} 22... Rf8 {[%clk 0:01:57.2]} 23. Qe4 {[%clk 0:01:43.2]} 23...
Bf6 {[%clk 0:01:38.7]} 24. Bh6 {[%clk 0:01:42.8]} 24... Rf7 {[%clk 0:01:36.8]}
25. Qg4 {[%clk 0:01:38.2]} 25... Nc3 {[%clk 0:01:16.9]} 26. Rbc1 {[%clk
0:01:38.9]} 26... Qd5 {[%clk 0:01:16.2]} 27. Ne5 {[%clk 0:01:31.6]} 27... Bxe5
{[%clk 0:01:13.4]} 28. Rxe5 {[%clk 0:01:33.5]} 28... Qxa2 {[%clk 0:01:10.5]} 29.
Rf1 {[%clk 0:01:24.8]} 29... Rf5 {[%clk 0:01:02.4]} 30. h4 {[%clk 0:01:19.4]}
30... Rxe5 {[%clk 0:01:00]} 31. dxe5 {[%clk 0:01:21.3]} 31... Qe2 {[%clk
0:00:58.6]} 32. Qf4 {[%clk 0:01:03.6]} 32... Rc8 {[%clk 0:00:58.7]} 33. Qb4
{[%clk 0:00:52.5]} 33... Nd5 {[%clk 0:00:38.1]} 34. Qxb7 {[%clk 0:00:50.7]}
34... Qc4 {[%clk 0:00:37.7]} 35. Bg5 {[%clk 0:00:33.4]} 35... Qc6 {[%clk
0:00:34.4]} 36. Qxa7 {[%clk 0:00:32.3]} 36... Ra8 {[%clk 0:00:35]} 37. Qd4
{[%clk 0:00:32.6]} 37... Ra4 {[%clk 0:00:35.3]} 38. Qd1 {[%clk 0:00:31.2]} 38...
h6 {[%clk 0:00:32.7]} 39. Bxh6 {[%clk 0:00:23.1]} 39... Rxh4 {[%clk 0:00:34.1]}
40. Bg5 {[%clk 0:00:23.3]} 40... Rh5 {[%clk 0:00:30.3]} 41. Qc1 {[%clk
0:00:23.7]} 41... Qxc1 {[%clk 0:00:28.6]} 42. Bxc1 {[%clk 0:00:25.6]} 42... Rxe5
{[%clk 0:00:29.4]} 43. Bb2 {[%clk 0:00:27.1]} 43... Re2 {[%clk 0:00:29.7]} 44.
Bd4 {[%clk 0:00:28.4]} 44... e5 {[%clk 0:00:29.6]} 45. Bc5 {[%clk 0:00:29.8]}
45... Kf7 {[%clk 0:00:30.3]} 46. Rd1 {[%clk 0:00:30.9]} 46... Ke6 {[%clk
0:00:30.5]} 47. Ra1 {[%clk 0:00:30.8]} 47... Rc2 {[%clk 0:00:31]} 48. Ra6+
{[%clk 0:00:31.2]} 48... Kf5 {[%clk 0:00:31.8]} 49. Ra5 {[%clk 0:00:30.7]} 49...
e6 {[%clk 0:00:30.7]} 50. Bd6 {[%clk 0:00:25.1]} 50... e4 {[%clk 0:00:29.7]} 51.
Ra3 {[%clk 0:00:24.1]} 51... g5 {[%clk 0:00:29.9]} 52. Rh3 {[%clk 0:00:23.4]}
52... Rd2 {[%clk 0:00:29.9]} 53. Bb8 {[%clk 0:00:22.6]} 53... Nf4 {[%clk
0:00:26.5]} 54. Ra3 {[%clk 0:00:21]} 54... Nd3 {[%clk 0:00:25.7]} 55. Ra5+
{[%clk 0:00:21.6]} 55... e5 {[%clk 0:00:26.2]} 56. Ba7 {[%clk 0:00:20.3]} 56...
Rd1+ {[%clk 0:00:26.5]} 57. Kh2 {[%clk 0:00:21.3]} 57... Rb1 {[%clk 0:00:26.7]}
58. Be3 {[%clk 0:00:21.5]} 58... Rb7 {[%clk 0:00:25.9]} 59. Ra8 {[%clk
0:00:22.3]} 59... Rh7+ {[%clk 0:00:26]} 60. Kg1 {[%clk 0:00:23.6]} 60... Nf4
{[%clk 0:00:27]} 61. Rf8+ {[%clk 0:00:24.1]} 61... Ke6 {[%clk 0:00:26.8]} 62. g3
{[%clk 0:00:20.8]} 62... Ng6 {[%clk 0:00:13.6]} 63. Ra8 {[%clk 0:00:21.6]} 63...
g4 {[%clk 0:00:13.5]} 64. Kg2 {[%clk 0:00:20.6]} 64... Rb7 {[%clk 0:00:12.5]}
65. Rg8 {[%clk 0:00:20.6]} 65... Kf7 {[%clk 0:00:12.5]} 66. Rc8 {[%clk
0:00:21.9]} 66... Kf6 {[%clk 0:00:12.6]} 67. Rc4 {[%clk 0:00:22.8]} 67... Kf5
{[%clk 0:00:13]} 68. Rc6 {[%clk 0:00:24.5]} 68... Rb2 {[%clk 0:00:12.5]} 69. Bb6
{[%clk 0:00:24.4]} 69... Ne7 {[%clk 0:00:11]} 70. Rh6 {[%clk 0:00:23.9]} 70...
Ng6 {[%clk 0:00:11.3]} 71. Be3 {[%clk 0:00:23.1]} 71... Kf6 {[%clk 0:00:11.8]}
72. Rh5 {[%clk 0:00:24.1]} 72... Ra2 {[%clk 0:00:10.9]} 73. Rg5 {[%clk
0:00:22.3]} 73... Ne7 {[%clk 0:00:08]} 74. Rxg4 {[%clk 0:00:23.7]} 74... Nd5
{[%clk 0:00:08.8]} 75. Bc5 {[%clk 0:00:12.9]} 75... e3 {[%clk 0:00:08.8]} 76.
Re4 {[%clk 0:00:13.5]} 76... Rxf2+ {[%clk 0:00:08.3]} 77. Kh3 {[%clk 0:00:14.1]}
77... Re2 {[%clk 0:00:07.6]} 78. Kg4 {[%clk 0:00:13.7]} 78... Ke6 {[%clk
0:00:06.8]} 79. Kg5 {[%clk 0:00:09]} 79... Rc2 {[%clk 0:00:06.6]} 80. Ba7 {[%clk
0:00:08.4]} 80... e2 {[%clk 0:00:07]} 81. Bb8 {[%clk 0:00:09.2]} 81... Nf6
{[%clk 0:00:04.4]} 82. Rxe5+ {[%clk 0:00:10.2]} 82... Kf7 {[%clk 0:00:06]} 83.
Ba7 {[%clk 0:00:10.1]} 83... Ra2 {[%clk 0:00:06]} 84. Bf2 {[%clk 0:00:10.8]}
84... Ra4 {[%clk 0:00:04.3]} 85. Kf5 {[%clk 0:00:08.9]} 85... Ra6 {[%clk
0:00:03.2]} 86. Rxe2 {[%clk 0:00:09.4]} 86... Ra5+ {[%clk 0:00:03.7]} 87. Kf4
{[%clk 0:00:11]} 87... Nd5+ {[%clk 0:00:04]} 88. Kf3 {[%clk 0:00:12.1]} 88...
Ra3+ {[%clk 0:00:04.2]} 89. Kg2 {[%clk 0:00:13.6]} 89... Nf6 {[%clk 0:00:05.4]}
90. Rd2 {[%clk 0:00:14.7]} 90... Ne4 {[%clk 0:00:04.8]} 91. Rd4 {[%clk
0:00:15.2]} 91... Nxf2 {[%clk 0:00:04.9]} 92. Kxf2 {[%clk 0:00:16.3]} 92... Kg7
{[%clk 0:00:06.2]} 93. Kg2 {[%clk 0:00:17.5]} 93... Rb3 {[%clk 0:00:07.4]} 94.
Kh3 {[%clk 0:00:18.9]} 94... Ra3 {[%clk 0:00:08.4]} 95. Kh4 {[%clk 0:00:19.9]}
95... Ra5 {[%clk 0:00:09.9]} 96. g4 {[%clk 0:00:21.2]} 96... Rb5 {[%clk
0:00:10.9]} 97. g5 {[%clk 0:00:22.5]} 97... Rb1 {[%clk 0:00:11.2]} 98. Kg4
{[%clk 0:00:23.6]} 98... Rg1+ {[%clk 0:00:11.5]} 99. Kf5 {[%clk 0:00:25.2]}
99... Rf1+ {[%clk 0:00:12.7]} 100. Kg4 {[%clk 0:00:26.8]} 100... Rg1+ {[%clk
0:00:13.3]} 101. Kf5 {[%clk 0:00:28.1]} 101... Rf1+ {[%clk 0:00:14.2]} 102. Rf4
{[%clk 0:00:30]} 102... Rxf4+ {[%clk 0:00:10.5]} 103. Kxf4 {[%clk 0:00:31.9]}
103... Kg6 {[%clk 0:00:11.5]} 104. Kg4 {[%clk 0:00:33.8]} 104... Kg7 {[%clk
0:00:12.5]} 105. Kf5 {[%clk 0:00:35.7]} 105... Kf7 {[%clk 0:00:13.5]} 106. Kf4
{[%clk 0:00:37.6]} 106... Kg7 {[%clk 0:00:13.7]} 107. Kg4 {[%clk 0:00:39.5]}
107... Kg6 {[%clk 0:00:13.5]} 108. Kh4 {[%clk 0:00:41]} 108... Kg7 {[%clk
0:00:14.4]} 109. Kh5 {[%clk 0:00:42.9]} 109... Kh7 {[%clk 0:00:15.4]} 110. g6+
{[%clk 0:00:44.8]} 110... Kg7 {[%clk 0:00:16.5]} 111. Kh4 {[%clk 0:00:46.2]}
111... Kxg6 {[%clk 0:00:17.1]} 1/2-1/2

[Event "*** Titled Tuesday 3|2 Blitz"]
[Site "Chess.com"]
[Date "2016.06.07"]
[Round "3"]
[White "hansen"]
[Black "GeorgMeier"]
[Result "1/2-1/2"]
[WhiteElo "2561"]
[BlackElo "2717"]
[TimeControl "180+2"]
[EndTime "11:30:00 PDT"]
[Termination "Game drawn by repetition"]

1. e4 {[%clk 0:03:01.9]} 1... e6 {[%clk 0:03:00.9]} 2. d4 {[%clk 0:03:02.3]}
2... d5 {[%clk 0:03:02.3]} 3. Nc3 {[%clk 0:03:03.4]} 3... dxe4 {[%clk
0:03:03.8]} 4. Nxe4 {[%clk 0:03:04.2]} 4... Nd7 {[%clk 0:03:05.4]} 5. Nf3 {[%clk
0:03:04]} 5... Ngf6 {[%clk 0:03:06.9]} 6. Bg5 {[%clk 0:02:47.7]} 6... h6 {[%clk
0:03:00.5]} 7. Nxf6+ {[%clk 0:02:44.7]} 7... Nxf6 {[%clk 0:03:02.4]} 8. Be3
{[%clk 0:02:40.2]} 8... Bd6 {[%clk 0:03:03]} 9. Bd3 {[%clk 0:02:27.2]} 9... O-O
{[%clk 0:03:02.7]} 10. Qd2 {[%clk 0:02:16.4]} 10... Nd5 {[%clk 0:03:02.3]} 11.
Bxh6 {[%clk 0:02:13.4]} 11... gxh6 {[%clk 0:03:02.6]} 12. Qxh6 {[%clk
0:02:13.9]} 12... f5 {[%clk 0:03:03.5]} 13. Qg6+ {[%clk 0:02:14.8]} 13... Kh8
{[%clk 0:03:03.8]} 14. Qh6+ {[%clk 0:02:16.1]} 14... Kg8 {[%clk 0:03:04.1]} 15.
Qg6+ {[%clk 0:02:16.4]} 15... Kh8 {[%clk 0:03:05]} 16. Qh6+ {[%clk 0:02:17.8]}
16... Kg8 {[%clk 0:03:04.9]} 17. Qg6+ {[%clk 0:02:17.4]} 17... Kh8 {[%clk
0:03:05.1]} 1/2-1/2

[Event "*** Titled Tuesday 3|2 Blitz"]
[Site "Chess.com"]
[Date "2016.06.07"]
[Round "3"]
[White "gmsakk"]
[Black "AdrianaNikolova"]
[Result "1-0"]
[WhiteElo "2548"]
[BlackElo "2314"]
[TimeControl "180+2"]
[EndTime "11:31:29 PDT"]
[Termination "gmsakk won by resignation"]

1. d4 {[%clk 0:02:59.4]} 1... d5 {[%clk 0:02:59.9]} 2. c4 {[%clk 0:03:00.7]}
2... c6 {[%clk 0:03:00.1]} 3. Nf3 {[%clk 0:03:01.8]} 3... Nf6 {[%clk 0:03:00.4]}
4. Qc2 {[%clk 0:03:02.9]} 4... dxc4 {[%clk 0:02:59.6]} 5. Qxc4 {[%clk
0:03:03.7]} 5... Bf5 {[%clk 0:03:01.1]} 6. g3 {[%clk 0:03:04.2]} 6... e6 {[%clk
0:03:00.8]} 7. Bg2 {[%clk 0:03:05.6]} 7... Nbd7 {[%clk 0:03:02.2]} 8. O-O {[%clk
0:03:06.9]} 8... Be7 {[%clk 0:03:03.4]} 9. Nc3 {[%clk 0:03:08.5]} 9... O-O
{[%clk 0:03:04.1]} 10. e3 {[%clk 0:03:09.9]} 10... Ne4 {[%clk 0:03:04.9]} 11.
Nd2 {[%clk 0:03:08]} 11... Nxc3 {[%clk 0:02:56.5]} 12. bxc3 {[%clk 0:03:08.7]}
12... Rc8 {[%clk 0:02:56]} 13. e4 {[%clk 0:03:08.7]} 13... Bg6 {[%clk
0:02:57.5]} 14. Qb3 {[%clk 0:03:09.2]} 14... Qb6 {[%clk 0:02:57]} 15. Nc4 {[%clk
0:03:08.4]} 15... Qxb3 {[%clk 0:02:57.2]} 16. axb3 {[%clk 0:03:09.7]} 16... a6
{[%clk 0:02:55.8]} 17. b4 {[%clk 0:03:05.7]} 17... f6 {[%clk 0:02:48.6]} 18. Bf4
{[%clk 0:03:01.2]} 18... Bf7 {[%clk 0:02:48.4]} 19. Bd6 {[%clk 0:03:00.1]} 19...
Bxd6 {[%clk 0:02:40.7]} 20. Nxd6 {[%clk 0:03:00.9]} 20... Rc7 {[%clk 0:02:41.3]}
21. f4 {[%clk 0:02:56.7]} 21... Nb6 {[%clk 0:02:39.7]} 22. c4 {[%clk 0:02:48.4]}
22... Rd8 {[%clk 0:02:40]} 23. c5 {[%clk 0:02:48.9]} 23... Nc8 {[%clk
0:02:40.5]} 24. e5 {[%clk 0:02:49.6]} 24... Nxd6 {[%clk 0:02:39.4]} 25. exd6
{[%clk 0:02:48.5]} 25... Rcd7 {[%clk 0:02:39.4]} 26. Rfe1 {[%clk 0:02:49.4]}
26... Re8 {[%clk 0:02:34.5]} 27. Ra3 {[%clk 0:02:48.9]} 27... h5 {[%clk
0:02:33.4]} 28. Rae3 {[%clk 0:02:49.2]} 28... f5 {[%clk 0:02:34.3]} 29. Bf1
{[%clk 0:02:50.1]} 29... b5 {[%clk 0:02:27.7]} 30. Ra3 {[%clk 0:02:47.5]} 30...
Ra8 {[%clk 0:02:24.7]} 31. Bg2 {[%clk 0:02:48.6]} 31... Rc8 {[%clk 0:02:22.6]}
32. Rxa6 {[%clk 0:02:48.8]} 1-0